bitfinex/quotes_ETHUSD_20220308
["timestamp","ask_amount","ask_price","bid_price","bid_amount"]
[1646776950287,0.00296,2563.6,2563.2,1.08568762]
[1646776950486,0.93790803,2563.6,2563.4,0.00343763]
[1646776950688,0.00296,2563.6,2563.4,0.00343763]
[1646776951536,0.93790803,2563.6,2563.2,1.08568762]
[1646776951740,0.00296,2563.6,2563.4,0.00343763]
[1646776952740,0.00296,2563.6,2563.2,1.08568762]
[1646776952940,0.00296,2563.6,2563.4,0.00343763]
[1646776953943,0.00296,2563.6,2563.2,1.08568762]
[1646776954144,0.00296,2563.6,2563.4,0.00343488]
[1646776955148,0.00296,2563.6,2563.2,1.08568762]
[1646776955391,0.00296,2563.6,2563.4,0.00343488]
[1646776956393,0.00296,2563.6,2563.3,1.59533063]
[1646776956596,0.00296,2563.6,2563.4,0.00343488]
[1646776957597,0.00296,2563.6,2563.1,1.59533041]
[1646776957800,0.00296,2563.6,2563.4,0.00343528]
[1646776958700,0.00296,2563.6,2563.1,1.59533041]
[1646776960140,0.00296,2563.6,2563.1,1.59448511]
[1646776961342,0.00296,2563.6,2563.2,0.00369278]
[1646776962347,0.00296,2563.6,2563.1,1.59448511]
[1646776962546,0.00296,2563.6,2563.3,0.00369275]
[1646776963587,0.00296,2563.6,2563.1,1.59448511]
[1646776963787,0.00296,2563.6,2563.3,0.00369272]
[1646776964686,4.43790803,2563.6,2563.1,1.59448511]
[1646776964888,0.93494803,2563.5,2562.7,0.5]
[1646776965087,3.5,2563.4,2563.3,0.00369272]
[1646776965287,4.43494803,2563.4,2563.3,0.00369272]
[1646776966288,3.5,2563.4,2563.2,0.003582]
[1646776966540,4.45509743,2563.4,2563.2,0.003582]
[1646776967142,4.45509743,2563.4,2562.7,0.8]
[1646776967342,4.45509743,2563.4,2563.2,0.00358202]
[1646776967544,0.95509743,2563.4,2563.2,0.00358202]
[1646776968344,0.95509743,2563.4,2562.7,0.8]
[1646776968545,0.95509743,2563.4,2563.2,0.00358202]
[1646776969544,0.95509743,2563.4,2562.7,0.8]
[1646776969744,0.95509743,2563.3,2563.2,0.00357461]
[1646776969944,0.95509743,2563.4,2563.2,0.00357461]
[1646776970587,0.95509743,2563.4,2563.2,0.90212222]
[1646776970793,1.43024667,2563.6,2563.2,0.90212222]
[1646776970794,0.95509743,2563.5,2563.2,0.89854761]
[1646776970987,0.00296,2563.6,2563.2,0.89854761]
[1646776970988,0.95805743,2563.6,2563.2,0.89854761]
[1646776971189,0.95805743,2563.6,2563.2,1.20212222]
[1646776971494,0.00296,2563.6,2563.2,1.20212222]
[1646776971691,0.00296,2563.6,2563.2,1.59392222]
[1646776972393,0.00296,2563.6,2563.3,0.00357455]
[1646776972689,0.006377,2563.8,2563.3,0.00357455]
[1646776972890,0.006377,2563.8,2563.7,0.79107358]
[1646776973294,0.006377,2563.8,2563.7,1.09107358]
[1646776980292,0.006377,2563.8,2563.7,2.68620792]
[1646776980692,0.006377,2563.8,2563.7,4.07800792]
[1646776981099,0.00168023,2564.4,2563.9,0.3918]
[1646776981293,1.42728667,2564.8,2564.0,1.98693434]
[1646776981294,0.95509743,2564.6,2564.0,1.98693434]
[1646776981539,0.95509743,2564.6,2564.1,1.98693434]
[1646776981743,0.95509743,2564.7,2564.3,0.81068192]
[1646776982345,0.95509743,2564.8,2564.4,0.47]
[1646776982742,0.95509743,2564.8,2564.4,0.77]
[1646776982946,0.77599438,2564.8,2564.4,2.13686]
[1646776983143,0.00320289,2565.0,2564.6,18.51012422]
[1646776983543,0.00320289,2565.0,2564.6,19.51012422]
[1646776983747,0.00320289,2565.0,2564.7,0.77]
[1646776984047,1.4534312,2565.4,2564.8,1.36668]
[1646776984345,1.4534312,2565.4,2564.9,0.77899217]
[1646776984346,0.00320353,2565.0,2564.9,0.77899217]
[1646776984746,0.00320353,2565.0,2564.9,1.07899217]
[1646776985147,0.0244643,2565.4,2564.9,1.07899217]
[1646776985392,3.5244643,2565.4,2564.9,0.77899217]
[1646776985690,0.00320352,2565.1,2564.9,0.77899217]
[1646776985891,0.00320352,2565.1,2564.5,4.17308]
[1646776986089,0.00320352,2565.1,2564.5,3.17308]
[1646776986291,0.00320352,2565.1,2564.5,4.17308]
[1646776986489,1.42728667,2565.3,2564.5,3.17308]
[1646776986692,0.0034335,2565.0,2564.5,4.47308]
[1646776986893,0.0034335,2565.0,2564.7,0.81379198]
[1646776987394,0.0034335,2565.0,2564.7,1.11379198]
[1646776987593,1.42728667,2565.3,2564.7,1.11379198]
[1646776987893,0.0034412,2565.0,2564.7,1.11379198]
[1646776988092,0.0018431,2565.0,2564.7,1.11379198]
[1646776988895,0.0244643,2565.4,2564.7,1.11379198]
[1646776989538,1.45175097,2565.4,2564.7,1.11379198]
[1646776989937,0.0244643,2565.4,2564.7,1.11379198]
[1646776990142,1.45175097,2565.4,2564.7,1.11379198]
[1646776990338,0.00216956,2565.2,2564.7,1.11379198]
[1646776991239,0.0244643,2565.4,2564.7,1.11379198]
[1646776991443,0.00369146,2565.1,2564.7,1.11379198]
[1646776992542,0.94891298,2565.2,2564.7,1.11379198]
[1646776992798,0.00369149,2565.0,2564.7,1.11379198]
[1646776993589,0.94891298,2565.3,2564.7,1.11379198]
[1646776993790,0.94891298,2565.3,2564.7,2.08873198]
[1646776993993,0.00369152,2565.0,2564.7,2.08873198]
[1646776994792,0.97505751,2565.4,2564.7,2.08873198]
[1646776994991,0.97337728,2565.4,2564.7,2.08873198]
[1646776995190,0.00369152,2565.0,2564.7,2.08873198]
[1646776996094,0.97505751,2565.4,2564.7,2.08873198]
[1646776996295,0.0035697,2565.0,2564.7,2.08873198]
[1646776997145,0.97337728,2565.4,2564.7,2.08873198]
[1646776997443,0.97337728,2565.4,2565.2,0.64979042]
[1646776997444,0.0244643,2565.4,2565.2,0.64979042]
[1646776997842,0.0244643,2565.4,2565.2,0.94979042]
[1646776998045,0.0244643,2565.4,2565.2,0.3]
[1646776998244,1.36517728,2565.4,2564.5,1.2232]
[1646776998446,0.97337728,2565.4,2564.5,1.5232]
[1646776998646,0.4162643,2565.4,2564.5,1.5232]
[1646776998845,0.41983376,2565.4,2564.5,1.5232]
[1646776999047,0.02803376,2565.4,2564.6,0.84589627]
[1646776999849,0.00341682,2565.1,2564.6,0.84589627]
[1646777000796,0.00341682,2565.1,2564.6,1.82087627]
[1646777001396,0.00341682,2565.1,2564.6,0.84589627]
[1646777001599,0.00341682,2565.1,2565.0,0.91354482]
[1646777001797,0.00341682,2565.1,2564.5,1.5232]
[1646777002797,0.00341682,2565.1,2564.9,0.66370504]
[1646777003398,0.00341682,2565.1,2564.9,0.96370504]
[1646777004046,0.00341682,2565.1,2564.9,0.3]
[1646777004248,0.00341682,2565.1,2564.5,1.2232]
[1646777004444,0.00341682,2565.1,2564.5,1.5232]
[1646777005144,0.0244643,2565.4,2564.8,0.70952291]
[1646777005344,0.0244643,2565.4,2564.8,1.00952291]
[1646777011947,0.0244643,2565.4,2564.6,0.3]
[1646777012349,0.0244643,2565.4,2564.5,1.5232]
[1646777012550,3.5244643,2565.4,2564.5,1.52166209]
[1646777012950,3.9162643,2565.4,2564.5,2.3490609]
[1646777014355,4.86517728,2565.4,2564.5,2.3490609]
[1646777015153,3.9162643,2565.4,2564.5,2.3490609]
[1646777015390,4.86517728,2565.4,2564.5,2.3490609]
[1646777016192,0.00369146,2565.1,2564.5,2.3490609]
[1646777017002,1.34071298,2565.3,2564.5,2.3490609]
[1646777017199,0.94891298,2565.3,2564.5,2.3490609]
[1646777017402,0.00369152,2564.9,2564.5,2.3490609]
[1646777018199,1.34071298,2565.3,2564.5,2.3490609]
[1646777018400,0.00369144,2564.9,2564.5,2.3490609]
[1646777019441,0.0244643,2565.4,2564.5,2.3490609]
[1646777019638,0.00369144,2564.9,2564.5,2.3490609]
[1646777020541,0.0244643,2565.4,2564.5,2.3490609]
[1646777020942,0.0036724,2564.9,2564.5,2.3490609]
[1646777021945,0.0244643,2565.4,2564.9,0.80804474]
[1646777022148,0.0244643,2565.4,2564.9,1.10804474]
[1646777022995,0.0244643,2565.4,2565.3,0.90126951]
[1646777023396,0.0244643,2565.4,2565.3,1.20126951]
[1646777027846,0.0244643,2565.4,2565.3,0.3]
[1646777028247,0.0244643,2565.4,2564.8,2.20579]
[1646777028447,0.0244643,2565.4,2564.8,2.50579]
[1646777028847,0.0244643,2565.4,2565.3,0.91210836]
[1646777029249,0.0244643,2565.4,2565.3,1.21210836]
[1646777030992,0.0244643,2565.4,2565.3,0.3]
[1646777031391,0.0244643,2565.4,2564.8,1.2309]
[1646777031592,0.0244643,2565.4,2564.8,1.5309]
[1646777032394,0.0244643,2565.4,2564.9,0.66093872]
[1646777032796,0.00340921,2565.2,2564.9,0.66093872]
[1646777033795,0.0244643,2565.4,2564.9,0.66093872]
[1646777034246,0.00340923,2565.2,2564.9,0.66093872]
[1646777034445,0.00340923,2565.2,2564.8,1.5309]
[1646777035148,0.0244643,2565.4,2564.8,1.5309]
[1646777035353,0.00343677,2565.1,2564.8,1.5309]
[1646777036152,0.0244643,2565.4,2564.8,1.5309]
[1646777036552,0.00343679,2565.1,2564.8,1.5309]
[1646777037368,0.0244643,2565.4,2564.8,1.5309]
[1646777037556,0.00343679,2565.1,2564.8,1.5309]
[1646777038593,0.0244643,2565.4,2564.8,0.3]
[1646777038996,0.00310992,2565.1,2564.3,1.1339]
[1646777039396,0.00310992,2565.1,2564.3,1.4339]
[1646777039597,0.00310992,2565.1,2564.3,1.1339]
[1646777039799,3.8918,2565.1,2564.3,1.1339]
[1646777039996,0.00184543,2564.9,2564.3,1.1339]
[1646777040998,4.8918,2565.1,2564.3,1.1339]
[1646777041198,0.00184536,2564.9,2564.3,1.1339]
[1646777041645,4.74364536,2565.1,2564.3,1.4339]
[1646777043746,0.00204574,2565.0,2564.3,1.4339]
[1646777044646,0.95396878,2564.7,2564.3,1.4339]
[1646777045046,0.95396878,2564.7,2564.3,0.3]
[1646777045295,0.95396878,2564.7,2564.2,0.3]
[1646777045495,0.95396878,2564.7,2564.1,1.01302238]
[1646777045697,1.25396878,2564.8,2564.2,1.59469503]
[1646777045896,1.25396878,2564.8,2564.3,0.3]
[1646777046093,0.95396878,2564.8,2564.3,0.30356648]
[1646777046295,3.5,2564.7,2564.3,0.00356648]
[1646777046497,3.5,2564.7,2564.3,0.30356648]
[1646777046498,0.95396878,2564.7,2564.3,0.30356648]
[1646777046696,0.95396878,2564.7,2564.3,0.00356648]
[1646777046899,0.95396878,2564.7,2564.3,0.30356648]
[1646777047101,0.95396878,2564.7,2564.3,0.3]
[1646777047299,0.95396878,2564.7,2564.2,0.73185118]
[1646777047499,0.95396878,2564.7,2564.3,0.00341678]
[1646777048302,0.70396878,2564.7,2563.8,3.83894902]
[1646777048501,0.70396878,2564.7,2564.3,0.00341678]
[1646777049345,0.70396878,2564.7,2564.0,0.79673746]
[1646777049548,0.70396878,2564.7,2564.1,1.59471516]
[1646777049845,0.3,2564.8,2564.3,0.00341678]
[1646777050046,3.5,2564.9,2564.3,0.00341678]
[1646777050649,3.5,2564.9,2564.1,1.59472971]
[1646777050953,5.93095317,2564.9,2564.3,0.00326063]
[1646777051749,5.93095317,2564.9,2564.1,1.59472971]
[1646777051948,5.93095317,2564.9,2564.3,0.00326063]
[1646777052149,4.5,2564.9,2564.3,0.00326063]
[1646777052349,5.93095317,2564.9,2564.3,0.00326063]
[1646777052999,6.32275317,2564.9,2564.1,1.59472971]
[1646777053197,4.8918,2564.9,2564.3,0.00326063]
[1646777053399,4.5,2564.9,2564.3,0.00326063]
[1646777054198,4.8918,2564.9,2564.1,1.59472971]
[1646777054399,4.8918,2564.9,2564.3,0.00311428]
[1646777054602,4.5,2564.9,2564.3,0.00311428]
[1646777055501,6.32275317,2564.9,2564.0,1.09673746]
[1646777055702,6.32275317,2564.9,2564.3,0.00311428]
[1646777055703,4.5,2564.9,2564.3,0.00311428]
[1646777056105,5.93095317,2564.9,2564.3,0.00311428]
[1646777056549,6.32275317,2564.9,2564.0,1.09673746]
[1646777056950,5.93095317,2564.9,2564.3,0.00311428]
[1646777057151,6.07910781,2564.9,2564.3,0.00311428]
[1646777057351,0.95274248,2564.7,2564.3,0.00311428]
[1646777057751,0.95274248,2564.7,2564.0,1.09673746]
[1646777058152,0.95274248,2564.7,2564.3,0.00314104]
[1646777058954,0.95274248,2564.7,2564.0,1.09673746]
[1646777059356,0.95274248,2564.7,2564.3,0.00314104]
[1646777059755,0.3,2564.8,2564.3,0.00314104]
[1646777059957,0.95274248,2564.9,2564.3,0.00314104]
[1646777060156,0.95274248,2564.9,2564.1,1.59471175]
[1646777060600,0.95274248,2564.9,2564.3,0.00314107]
[1646777061408,1.25274248,2565.0,2564.1,1.59471175]
[1646777061799,1.25274248,2565.0,2564.3,0.00313666]
[1646777061800,0.95587828,2565.0,2564.3,0.00313666]
[1646777062798,0.95587828,2565.0,2564.3,0.3031367]
[1646777062799,0.00313584,2565.0,2564.3,0.3031367]
[1646777063002,0.00313584,2565.0,2564.8,0.88207289]
[1646777063398,0.00313584,2565.0,2564.8,1.18207289]
[1646777063600,0.00313584,2565.0,2564.8,0.3]
[1646777063799,0.95274248,2565.1,2564.3,1.2363]
[1646777064048,0.00313602,2565.0,2564.4,1.59458301]
[1646777064651,0.00313602,2565.0,2564.8,0.77304764]
[1646777064853,0.00313602,2565.0,2564.8,1.07304764]
[1646777065053,1.25274248,2565.2,2564.8,1.07304764]
[1646777065254,0.00313659,2565.0,2564.8,1.07304764]
[1646777065754,0.00313659,2565.0,2564.8,1.46484764]
[1646777066355,0.98975122,2565.4,2564.8,1.46484764]
[1646777066356,0.0244643,2565.4,2564.8,1.46484764]
[1646777066558,0.00313673,2565.0,2564.8,1.46484764]
[1646777067357,0.03700932,2565.4,2564.8,1.46484764]
[1646777067358,0.0244643,2565.4,2564.8,1.46484764]
[1646777067802,0.00313673,2565.0,2564.8,1.46484764]
[1646777068594,0.0244643,2565.4,2564.8,1.46484764]
[1646777068796,0.00186428,2565.0,2564.8,1.46484764]
[1646777068994,0.00186428,2565.0,2564.9,0.97488]
[1646777069395,0.00186428,2565.0,2564.9,1.27488]
[1646777069597,0.00186428,2565.0,2564.9,3.26102485]
[1646777069798,0.0244643,2565.4,2565.0,0.3918]
[1646777069998,0.00186428,2565.1,2565.0,0.3918]
[1646777070197,0.00186428,2565.1,2565.0,2.28608396]
[1646777070597,0.00186428,2565.1,2565.0,17.24407097]
[1646777070799,0.00186428,2565.1,2565.0,18.24407097]
[1646777071000,0.0244643,2565.4,2565.0,18.24407097]
[1646777071197,0.00186428,2565.2,2565.0,16.64978701]
[1646777072151,0.0244643,2565.4,2565.0,16.64978701]
[1646777072562,0.00356191,2565.2,2565.0,16.64978701]
[1646777072953,0.00356191,2565.2,2565.0,1.6918]
[1646777073153,0.00356191,2565.2,2565.0,0.6918]
[1646777073352,0.0244643,2565.4,2565.0,0.6918]
[1646777073753,0.00356191,2565.2,2565.0,0.6918]
[1646777074555,0.0244643,2565.4,2565.0,0.6918]
[1646777074953,0.00356191,2565.2,2565.0,0.6918]
[1646777075397,0.40700821,2565.7,2565.1,0.3918]
[1646777076397,0.40700821,2565.7,2565.0,0.6918]
[1646777077304,0.40700821,2565.7,2565.2,0.00142649]
[1646777078302,0.40700821,2565.7,2565.0,0.6918]
[1646777078502,0.40700821,2565.7,2565.3,0.00142643]
[1646777079347,0.40700821,2565.7,2565.1,1.57479]
[1646777079748,0.41058796,2565.7,2565.5,0.82849528]
[1646777080150,0.41058796,2565.7,2565.5,1.12849528]
[1646777080553,0.40700821,2565.7,2565.5,1.12849528]
[1646777080751,0.40916184,2565.7,2565.5,1.12849528]
[1646777081752,0.40700821,2565.7,2565.5,1.12849528]
[1646777081953,0.40916184,2565.7,2565.5,1.12849528]
[1646777083000,0.40700821,2565.7,2565.5,1.12849528]
[1646777083198,0.40916184,2565.7,2565.5,1.12849528]
[1646777084100,0.40700821,2565.7,2565.5,1.12849528]
[1646777084500,0.41069132,2565.7,2565.5,1.12849528]
[1646777084705,0.41069132,2565.7,2565.5,0.3]
[1646777084902,0.41069132,2565.7,2565.3,0.00368366]
[1646777085502,0.40700821,2565.7,2565.1,1.57479]
[1646777085701,0.41050535,2565.7,2565.3,0.00349767]
[1646777085902,0.41050535,2565.7,2565.5,0.85702836]
[1646777086110,0.41050535,2565.7,2565.5,1.15702836]
[1646777086648,0.40700821,2565.7,2565.5,1.15702836]
[1646777088247,0.4105008,2565.7,2565.5,1.15702836]
[1646777089050,0.40700821,2565.7,2565.5,1.15702836]
[1646777089249,0.41068567,2565.7,2565.5,1.15702836]
[1646777090309,0.40700821,2565.7,2565.5,1.15702836]
[1646777090500,0.41068567,2565.7,2565.5,1.15702836]
[1646777091502,0.40700821,2565.7,2565.5,1.15702836]
[1646777091707,0.41068567,2565.7,2565.5,1.15702836]
[1646777092608,0.40700821,2565.7,2565.5,1.15702836]
[1646777093007,0.41042224,2565.7,2565.5,1.15702836]
[1646777093809,0.40700821,2565.7,2565.5,1.15702836]
[1646777094048,0.41042224,2565.7,2565.5,1.15702836]
[1646777095051,0.40700821,2565.7,2565.5,1.15702836]
[1646777095247,0.41042224,2565.7,2565.5,1.15702836]
[1646777095446,0.41042224,2565.7,2565.5,1.15617047]
[1646777096050,0.43835916,2565.7,2565.5,1.15617047]
[1646777096249,0.43494513,2565.7,2565.5,1.15617047]
[1646777096450,0.4386202,2565.7,2565.5,1.15617047]
[1646777097456,0.43494513,2565.7,2565.5,1.15617047]
[1646777097658,0.4386202,2565.7,2565.5,1.15617047]
[1646777098697,0.43494513,2565.7,2565.5,1.15617047]
[1646777098898,0.4386202,2565.7,2565.5,1.15617047]
[1646777099799,0.43494513,2565.7,2565.5,1.15617047]
[1646777100202,0.00011335,2565.7,2565.5,1.15617047]
[1646777100400,0.01471839,2565.7,2565.3,0.00356876]
[1646777101002,0.01460504,2565.7,2565.2,1.5084]
[1646777101851,0.01460504,2565.7,2565.3,0.90219249]
[1646777103654,0.01460504,2565.7,2565.4,0.0036789]
[1646777103855,0.01460504,2565.7,2565.4,0.9782889]
[1646777104454,0.01460504,2565.7,2565.4,1.2782889]
[1646777104655,0.01460504,2565.7,2565.4,1.27461]
[1646777104954,0.01460504,2565.7,2565.4,1.27828887]
[1646777105801,0.01460504,2565.7,2565.4,1.27461]
[1646777106203,0.01460504,2565.7,2565.4,1.27828887]
[1646777106402,0.01460504,2565.7,2565.4,2.25282887]
[1646777106605,0.01460504,2565.7,2565.5,0.9745437]
[1646777107104,0.01460504,2565.7,2565.6,0.3]
[1646777107504,0.05496311,2565.7,2565.6,0.3]
[1646777108206,0.0423918,2566.2,2565.6,20.19541105]
[1646777108407,0.01320206,2566.4,2565.9,5.5]
[1646777108605,0.02747088,2566.4,2566.0,1.5934287]
[1646777108805,0.02747088,2566.4,2565.9,6.8]
[1646777109050,0.02747088,2566.4,2566.0,1.59340981]
[1646777109249,0.02747088,2566.4,2566.1,1.59336663]
[1646777109450,0.010636,2566.3,2566.1,0.47]
[1646777109653,0.010636,2566.3,2566.2,2.45202161]
[1646777109849,0.010636,2566.3,2566.2,0.85871354]
[1646777109850,0.01420378,2566.3,2566.2,0.85871354]
[1646777110655,0.010636,2566.3,2566.2,0.85871354]
[1646777111051,0.010636,2566.3,2566.2,1.15871354]
[1646777113500,0.010636,2566.3,2566.2,1.62871354]
[1646777114302,0.010636,2566.3,2566.2,2.02051354]
[1646777115605,3.6e-05,2566.3,2566.2,2.02051354]
[1646777117353,3.6e-05,2566.3,2566.2,3.22188683]
[1646777117653,3.6e-05,2566.3,2566.2,4.22188683]
[1646777117854,3.6e-05,2566.3,2566.2,6.12871354]
[1646777118055,3.6e-05,2566.3,2566.2,9.08785012]
[1646777118255,0.0840514,2566.7,2566.4,0.97749113]
[1646777118458,0.0840514,2566.7,2566.5,3.97]
[1646777118654,0.0840514,2566.7,2566.5,4.27]
[1646777118856,0.0840514,2566.7,2566.5,1.77]
[1646777119254,0.0840514,2566.7,2566.5,0.77]
[1646777119455,0.0840514,2566.7,2566.5,1.74408]
[1646777120056,0.0840514,2566.7,2566.5,17.18408]
[1646777120308,0.0840514,2566.7,2566.5,18.18408]
[1646777120898,0.0840514,2566.7,2566.5,14.68408]
[1646777121299,0.0840514,2566.7,2566.5,15.07588]
[1646777121499,0.0840514,2566.7,2566.5,3.13588]
[1646777122103,0.0840514,2566.7,2566.5,2.13588]
[1646777122404,0.0840514,2566.7,2566.6,11.94]
[1646777122602,0.0840514,2566.7,2566.6,12.41]
[1646777122803,0.0840514,2566.7,2566.6,13.41]
[1646777123003,0.08772927,2566.7,2566.6,13.41]
[1646777123903,0.0840514,2566.7,2566.6,13.41]
[1646777124352,0.0840514,2566.7,2566.6,1.47]
[1646777124552,0.0840514,2566.7,2566.5,0.3]
[1646777124753,0.0840514,2566.7,2566.3,1.211764]
[1646777124952,0.0840514,2566.7,2566.3,0.000764]
[1646777125555,0.08772927,2566.7,2566.3,0.000764]
[1646777126358,0.0840514,2566.7,2566.3,0.000764]
[1646777126557,0.00367793,2566.6,2566.3,0.000764]
[1646777127558,0.91776984,2566.5,2566.3,0.000764]
[1646777128199,0.003609,2566.6,2566.3,0.000764]
[1646777128599,0.08573163,2566.7,2566.3,0.000764]
[1646777128802,0.0840514,2566.7,2566.3,0.000764]
[1646777129004,0.003609,2566.6,2566.3,0.000764]
[1646777129602,0.00223516,2566.6,2566.3,0.000764]
[1646777129803,0.0840514,2566.7,2566.3,0.000764]
[1646777130002,0.08573163,2566.7,2566.3,0.000764]
[1646777130605,3.58573163,2566.7,2566.3,0.000764]
[1646777130806,4.58573163,2566.7,2566.3,0.000764]
[1646777131407,4.58912654,2566.7,2566.3,0.000764]
[1646777131655,4.58744631,2566.7,2566.3,0.000764]
[1646777132253,4.5840514,2566.7,2566.3,0.000764]
[1646777132454,4.58744631,2566.7,2566.3,0.000764]
[1646777133054,5.54018879,2566.7,2566.3,0.000764]
[1646777133455,4.5840514,2566.7,2566.3,0.000764]
[1646777133854,5.54018879,2566.7,2566.3,0.000764]
[1646777134654,5.53679388,2566.7,2566.3,0.000764]
[1646777135053,5.54021631,2566.7,2566.3,0.000764]
[1646777135310,5.54021631,2566.7,2566.4,0.5]
[1646777135497,5.54021631,2566.7,2566.3,0.000764]
[1646777135898,5.53679388,2566.7,2566.3,0.000764]
[1646777136098,5.54021631,2566.7,2566.3,0.000764]
[1646777137106,5.53679388,2566.7,2566.3,0.000764]
[1646777137407,5.54021631,2566.7,2566.3,0.000764]
[1646777137805,6.13723559,2566.7,2566.3,0.000764]
[1646777138006,0.97494,2566.5,2566.3,0.000764]
[1646777138205,3.5,2566.4,2566.3,0.000764]
[1646777138406,3.50168023,2566.4,2566.3,0.000764]
[1646777138604,5.45442271,2566.4,2566.3,0.000764]
[1646777138805,5.45274248,2566.4,2566.3,0.000764]
[1646777139055,4.5,2566.4,2566.3,0.000764]
[1646777139657,5.45274248,2566.4,2566.3,0.000764]
[1646777139955,4.50168023,2566.4,2566.3,0.000764]
[1646777140154,4.5,2566.4,2566.3,0.000764]
[1646777140355,5.45274248,2566.4,2566.3,0.000764]
[1646777140955,5.45442271,2566.4,2566.3,0.000764]
[1646777141155,5.45274248,2566.4,2566.3,0.000764]
[1646777142162,5.45442271,2566.4,2566.3,0.000764]
[1646777142459,5.45274248,2566.4,2566.3,0.000764]
[1646777143306,5.45442271,2566.4,2566.3,0.000764]
[1646777143508,5.45274248,2566.4,2566.3,0.000764]
[1646777143705,4.5,2566.4,2566.3,0.000764]
[1646777143907,5.45013013,2566.4,2566.3,0.000764]
[1646777144104,17.39013013,2566.4,2566.3,0.000764]
[1646777144505,16.44168023,2566.4,2566.3,0.000764]
[1646777147244,1.25803984,2565.6,2564.8,1.59377834]
[1646777148539,0.97525,2565.4,2564.8,1.59377834]
[1646777149341,0.97525,2565.4,2565.0,0.00127957]
[1646777149941,3.5,2565.3,2565.0,0.00127957]
[1646777150387,1.0,2565.3,2564.6,1.59399474]
[1646777150584,4.89342482,2565.5,2564.7,1.59399474]
[1646777150787,5.1918,2565.5,2564.1,2.9103]
[1646777150984,5.19342482,2565.5,2564.4,1.59398754]
[1646777152987,5.19342482,2565.5,2564.8,0.00367603]
[1646777153189,5.1918,2565.5,2564.8,0.00367603]
[1646777154035,5.1918,2565.5,2564.4,1.59398754]
[1646777154237,4.80162482,2565.5,2565.0,0.00367591]
[1646777154437,4.8,2565.5,2565.0,0.00367591]
[1646777155137,0.3918,2565.4,2564.4,1.59398754]
[1646777155337,3.5,2565.3,2565.1,0.00367585]
[1646777155740,4.5,2565.3,2565.1,0.00367585]
[1646777155939,4.8,2565.5,2565.1,0.00367585]
[1646777156138,1.0,2565.3,2565.1,0.00367585]
[1646777156339,0.3918,2565.4,2564.4,1.59398754]
[1646777156541,3.5,2565.3,2565.2,0.00367582]
[1646777156742,1.0,2565.3,2565.2,0.00367582]
[1646777157141,4.8,2565.5,2565.2,0.00367582]
[1646777157544,4.8,2565.5,2564.4,1.59398754]
[1646777157794,4.8,2565.5,2565.2,0.00356552]
[1646777157795,4.80162482,2565.5,2565.2,0.00356552]
[1646777157984,4.8,2565.5,2565.2,0.00356552]
[1646777158587,1.3,2565.5,2565.2,0.00356552]
[1646777158788,0.3918,2565.4,2564.4,1.59398754]
[1646777158991,0.30162482,2565.5,2565.2,0.00356552]
[1646777159288,0.3,2565.5,2565.2,0.00356552]
[1646777159689,15.51960981,2565.6,2565.2,0.00356552]
[1646777159890,0.3918,2565.5,2564.4,1.59398754]
[1646777160096,0.3918,2565.2,2564.4,1.59398754]
[1646777160492,0.6918,2565.2,2564.4,1.59398754]
[1646777160892,0.6918,2565.2,2564.1,0.5]
[1646777161093,1.49889205,2565.2,2564.2,1.59429]
[1646777161292,1.49726723,2565.2,2564.2,1.59429]
[1646777161533,1.10546723,2565.2,2564.7,0.00339575]
[1646777162337,1.10546723,2565.2,2564.2,1.59429]
[1646777162338,1.49726723,2565.2,2564.2,1.59429]
[1646777162642,1.49726723,2565.2,2564.8,0.00339567]
[1646777162643,0.97542,2565.1,2564.8,0.00339567]
[1646777163238,11.94,2565.0,2564.8,0.00339567]
[1646777163637,12.3318,2564.8,2564.1,0.5]
[1646777163839,0.3918,2564.6,2563.6,2.08252487]
[1646777164037,3.8918,2564.6,2563.7,1.59450868]
[1646777164236,4.8918,2564.6,2563.7,1.59450868]
[1646777165038,4.5,2564.6,2564.0,0.00342096]
[1646777165483,0.97562,2564.5,2564.0,0.00342096]
[1646777165886,4.47562,2564.5,2563.7,1.59450868]
[1646777166285,4.47562,2564.5,2564.1,0.00342091]
[1646777166487,0.97562,2564.5,2564.1,0.00342091]
[1646777167089,0.97562,2564.5,2563.7,1.59450868]
[1646777167490,0.97562,2564.5,2564.2,0.00342088]
[1646777168291,0.97562,2564.5,2563.7,1.59450868]
[1646777168791,0.97562,2564.5,2564.2,0.00341724]
[1646777169235,0.97562,2564.5,2564.2,0.0019622]
[1646777169637,0.97562,2564.5,2563.7,1.59450868]
[1646777172240,0.97562,2564.5,2564.0,0.00153301]
[1646777172441,1.27562,2564.5,2564.0,0.00153301]
[1646777173095,1.27562,2564.5,2563.5,1.59456339]
[1646777173290,0.3918,2564.4,2563.5,1.59456339]
[1646777173487,1.71179446,2564.2,2564.1,0.00367645]
[1646777173689,2.01179446,2564.2,2564.1,0.00367645]
[1646777174288,2.01179446,2564.2,2563.4,0.5]
[1646777174587,0.97591,2564.0,2563.4,0.5]
[1646777175392,1.27591,2564.0,2563.4,0.5]
[1646777175594,1.66771,2564.0,2563.1,0.65225777]
[1646777175892,1.27591,2564.0,2563.6,0.00367678]
[1646777176091,13.21591,2564.0,2563.6,0.00367678]
[1646777176291,14.21591,2564.0,2563.6,0.00367678]
[1646777176740,14.60771,2564.0,2563.2,1.59477089]
[1646777176941,14.60771,2564.0,2563.7,0.00356641]
[1646777177239,13.24,2564.0,2563.7,0.00356641]
[1646777177739,15.19186,2564.0,2563.7,0.00356641]
[1646777177944,15.19186,2564.0,2563.0,2.48877028]
[1646777177945,11.94,2563.8,2563.0,2.48877028]
[1646777178146,11.94,2563.8,2563.7,0.00356638]
[1646777178341,12.94,2563.8,2563.7,0.00356638]
[1646777179144,13.3318,2563.8,2563.1,1.59483195]
[1646777179344,13.3318,2563.8,2563.6,0.00356643]
[1646777179546,12.94,2563.8,2563.6,0.00356643]
[1646777180303,13.3318,2563.8,2563.0,1.59482437]
[1646777180494,0.97597,2563.6,2563.0,1.59482437]
[1646777181898,0.97597,2563.6,2563.2,0.0034002]
[1646777182399,13.82506612,2563.8,2563.2,0.0034002]
[1646777182799,13.82506612,2563.8,2563.0,1.59482437]
[1646777182800,14.21686612,2563.8,2563.0,1.59482437]
[1646777183099,1.3,2563.8,2563.3,0.00340015]
[1646777183304,0.3,2563.8,2563.3,0.00340015]
[1646777183500,4.1075,2564.4,2563.3,0.00340015]
[1646777183698,0.3918,2564.3,2563.3,0.00340015]
[1646777183901,0.3918,2564.3,2563.2,0.89005538]
[1646777183902,12.3318,2564.1,2563.2,0.89005538]